bitfinex/quotes_BTCUSD_20241223
["timestamp","ask_amount","ask_price","bid_price","bid_amount"]
[1734971798138,0.001,93200.0,93198.0,0.214596]
[1734971798772,0.214562,93213.0,93195.0,0.0475]
[1734971798979,0.214556,93216.0,93199.0,0.10398632]
[1734971799187,0.000171,93218.0,93200.0,0.21459]
[1734971799379,0.000171,93218.0,93201.0,0.10398632]
[1734971799710,0.000171,93218.0,93192.0,0.004]
[1734971799711,0.001,93200.0,93198.0,0.006]
[1734971799924,0.214578,93206.0,93193.0,0.214606]
[1734971800099,0.214589,93202.0,93190.0,0.214615]
[1734971800301,0.214564,93212.0,93191.0,0.10398632]
[1734971800678,0.001,93216.0,93201.0,0.214589]
[1734971800875,0.001,93216.0,93205.0,0.214579]
[1734971800990,0.214557,93215.0,93205.0,0.214579]
[1734971801194,0.214557,93215.0,93201.0,0.31857532]
[1734971801633,0.001171,93218.0,93202.0,0.10398632]
[1734971801838,0.001171,93218.0,93202.0,0.18638632]
[1734971802045,0.000171,93218.0,93215.0,0.214556]
[1734971802519,0.000171,93218.0,93213.0,0.214561]
[1734971802718,0.000171,93218.0,93213.0,0.31854732]
[1734971802919,0.003171,93218.0,93213.0,0.31854732]
[1734971803737,0.004171,93218.0,93213.0,0.31854732]
[1734971804774,0.001171,93218.0,93211.0,0.214566]
[1734971805018,0.000171,93218.0,93213.0,0.001]
[1734971805396,0.000171,93218.0,93214.0,0.21456]
[1734971805552,0.000171,93218.0,93214.0,0.42912]
[1734971806181,0.000171,93218.0,93214.0,0.51808992]
[1734971806389,0.000171,93218.0,93216.0,0.214555]
[1734971806585,0.000171,93218.0,93217.0,0.12698632]
[1734971806938,0.000171,93218.0,93217.0,0.13500738]
[1734971807238,0.000171,93218.0,93217.0,0.00802106]
[1734971807722,0.000171,93218.0,93214.0,0.001]
[1734971807922,0.000171,93218.0,93214.0,0.002]
[1734971808242,0.000171,93218.0,93214.0,0.430118]
[1734971808410,0.001171,93218.0,93217.0,0.008]
[1734971808609,0.001171,93218.0,93217.0,0.12698632]
[1734971808970,0.001171,93218.0,93217.0,0.71984235]
[1734971809177,0.000171,93218.0,93217.0,0.61984235]
[1734971809582,0.001171,93218.0,93217.0,1.14973134]
[1734971809832,0.000171,93250.0,93217.0,0.59389748]
[1734971810074,0.214497,93241.0,93228.0,0.214526]
[1734971810283,0.0001603,93242.0,93228.0,0.214526]
[1734971810596,0.0001603,93242.0,93232.0,0.214517]
[1734971810817,0.0001603,93242.0,93218.0,0.10398632]
[1734971811027,0.0001603,93242.0,93237.0,0.429012]
[1734971811227,0.0001603,93242.0,93239.0,0.429004]
[1734971811620,0.0001603,93242.0,93219.0,0.17958632]
[1734971811863,0.0031603,93242.0,93230.0,0.09604712]
[1734971812080,0.0001603,93242.0,93231.0,0.21452]
[1734971812309,0.0011603,93242.0,93231.0,0.21452]
[1734971812537,0.0011603,93242.0,93239.0,0.003]
[1734971812747,0.0001603,93242.0,93235.0,0.214509]
[1734971813936,0.0001603,93242.0,93239.0,0.49285603]
[1734971814153,0.079,93283.0,93245.0,0.214488]
[1734971814371,0.214438,93267.0,93252.0,0.21447]
[1734971814572,0.214438,93267.0,93252.0,0.428941]
[1734971814744,0.214438,93267.0,93252.0,0.214471]
[1734971814957,0.07953445,93283.0,93253.0,0.10398632]
[1734971815169,0.00053445,93283.0,93279.0,0.21441]
[1734971815520,0.00053445,93283.0,93279.0,0.42882]
[1734971815724,0.00053445,93283.0,93280.0,0.10398632]
[1734971815923,0.15942112,93340.0,93280.0,0.10398632]
[1734971815924,0.0958991,93332.0,93290.0,0.15942112]
[1734971816179,0.15942112,93330.0,93292.0,0.023]
[1734971816349,0.00151045,93325.0,93291.0,0.02138701]
[1734971816561,0.214355,93304.0,93291.0,0.02138701]
[1734971816765,0.214355,93304.0,93290.0,0.214383]
[1734971817010,0.428709,93304.0,93285.0,0.214394]
[1734971817157,0.428709,93304.0,93261.0,0.1]
[1734971817158,0.214357,93302.0,93297.0,0.0960487]
[1734971817388,0.428724,93300.0,93297.0,0.0960487]
[1734971817597,0.214366,93298.0,93297.0,0.0960487]
[1734971817792,0.46835232,93298.0,93297.0,0.0960487]
[1734971818447,0.46835232,93298.0,93280.0,0.0960487]
[1734971818448,0.364405,93281.0,93280.0,0.0960487]
[1734971818796,0.46839132,93281.0,93280.0,0.0960487]
[1734971819348,0.46839132,93281.0,93259.0,0.2881461]
[1734971819349,0.214435,93269.0,93267.0,0.0960487]
[1734971819680,0.214435,93269.0,93267.0,0.02158315]
[1734971819917,0.15,93268.0,93267.0,0.02158315]
[1734971820108,0.25532652,93268.0,93267.0,0.02158315]
[1734971820307,0.25398632,93268.0,93267.0,0.00053445]
[1734971821229,0.25398632,93268.0,93267.0,0.00153445]
[1734971821434,0.25398632,93268.0,93267.0,0.00053445]
[1734971821643,0.25398632,93268.0,93267.0,0.00153445]
[1734971821845,0.25398632,93268.0,93267.0,0.00253445]
[1734971822047,0.25398632,93268.0,93267.0,0.00153445]
[1734971822476,0.25898632,93268.0,93267.0,0.00153445]
[1734971822820,0.34921345,93268.0,93267.0,0.00153445]
[1734971822936,0.34421345,93268.0,93267.0,0.00153445]
[1734971823380,0.34821345,93268.0,93267.0,0.00153445]
[1734971823587,0.34821345,93268.0,93267.0,0.00053445]
[1734971823946,0.34995144,93268.0,93267.0,0.00153445]
[1734971824142,0.34995144,93268.0,93267.0,0.00053445]
[1734971824458,0.35195144,93268.0,93267.0,0.00153445]
[1734971824782,0.35195144,93268.0,93231.0,0.05486644]
[1734971824783,0.214508,93237.0,93234.0,0.0706075]
[1734971825286,0.10532697,93236.0,93234.0,0.0706075]
[1734971825493,0.214511,93235.0,93234.0,0.0706075]
[1734971825697,0.214511,93235.0,93232.0,0.0001603]
[1734971825698,0.53300832,93235.0,93232.0,0.0001603]
[1734971825902,0.214516,93233.0,93232.0,0.0001603]
[1734971826106,0.46850232,93233.0,93232.0,0.0001603]
[1734971826362,0.55715923,93233.0,93232.0,0.0001603]
[1734971827513,0.46850232,93233.0,93232.0,0.0001603]
[1734971827907,0.47750232,93233.0,93232.0,0.0011603]
[1734971828109,0.46850232,93233.0,93232.0,0.0001603]
[1734971828536,0.47750232,93233.0,93232.0,0.0011603]
[1734971829234,0.47850232,93233.0,93232.0,0.0011603]
[1734971829409,0.58248864,93233.0,93232.0,0.0011603]
[1734971829623,0.68148864,93233.0,93232.0,3e-07]
[1734971829852,0.214603,93196.0,93191.0,0.1172688]
[1734971830058,0.214603,93196.0,93188.0,0.0755]
[1734971830280,0.214592,93200.0,93188.0,0.0755]
[1734971830488,0.214605,93195.0,93188.0,0.0755]
[1734971830926,0.214594,93199.0,93188.0,0.0755]
[1734971831153,0.214596,93198.0,93188.0,0.07561433]
[1734971831605,0.214596,93198.0,93188.0,0.07761433]
[1734971832143,0.15,93218.0,93188.0,0.07761433]
[1734971832144,0.15,93232.0,93190.0,0.023]
[1734971832349,0.15,93219.0,93192.0,0.023]
[1734971832570,0.15,93219.0,93208.0,0.214571]
[1734971832771,0.15,93219.0,93205.0,0.214579]
[1734971833551,0.429002,93240.0,93208.0,0.023]
[1734971833761,0.429002,93240.0,93222.0,0.21454]
[1734971833954,0.214477,93250.0,93227.0,0.214529]
[1734971834288,0.002,93219.0,93214.0,0.023]
[1734971834491,0.002,93219.0,93216.0,0.214555]
[1734971834660,0.002,93219.0,93213.0,0.02173632]
[1734971834861,0.002,93219.0,93208.0,0.001]
[1734971835060,0.15942112,93230.0,93207.0,0.0457]
[1734971835266,0.214551,93218.0,93207.0,0.0457]
[1734971835470,0.214551,93218.0,93202.0,0.35852635]
[1734971835471,0.214551,93218.0,93202.0,0.09596023]
[1734971835865,0.15,93217.0,93213.0,0.001]
[1734971836070,0.214535,93225.0,93213.0,0.001]
[1734971836279,0.214539,93223.0,93213.0,0.001]
[1734971836482,0.15,93217.0,93213.0,0.001]
[1734971836681,0.42911,93216.0,93213.0,0.001]
[1734971837213,0.21456,93214.0,93213.0,0.001]
[1734971837415,0.36456,93214.0,93213.0,0.003]
[1734971837618,0.36456,93214.0,93213.0,0.002]
[1734971837763,0.214564,93212.0,93202.0,0.003]
[1734971837968,0.15,93213.0,93203.0,0.214585]
[1734971838204,0.15,93213.0,93202.0,0.003]
[1734971838425,0.1651,93213.0,93202.0,0.003]
[1734971838635,0.15,93213.0,93202.0,0.003]
[1734971838841,0.15,93213.0,93202.0,0.214586]
[1734971839174,0.214564,93212.0,93198.0,0.214595]
[1734971839644,0.005,93214.0,93206.0,0.214576]
[1734971839779,0.005,93214.0,93194.0,0.0215688]
[1734971840034,0.005,93214.0,93203.0,0.214584]
[1734971840234,0.004,93213.0,93203.0,0.214584]
[1734971840460,0.001,93214.0,93203.0,0.214584]
[1734971840632,0.214523,93230.0,93208.0,0.214572]
[1734971840831,0.004,93214.0,93208.0,0.214572]
[1734971841057,0.001,93213.0,93205.0,0.21458]
[1734971841492,0.004,93214.0,93206.0,0.10398632]
[1734971841824,0.004,93214.0,93211.0,0.214565]
[1734971842265,0.15,93212.0,93203.0,8.56e-05]
[1734971842470,0.10398632,93213.0,93203.0,8.56e-05]
[1734971842471,0.364583,93204.0,93203.0,8.56e-05]
[1734971842676,0.46856932,93204.0,93203.0,8.56e-05]
[1734971843100,0.56856932,93204.0,93203.0,8.56e-05]
[1734971843316,0.59017495,93204.0,93203.0,8.56e-05]
[1734971843490,0.69017495,93204.0,93203.0,6e-07]
[1734971843724,0.69017495,93204.0,93194.0,0.00011433]
[1734971843725,0.2,93195.0,93194.0,0.00011433]
[1734971843904,0.36464,93179.0,93165.0,0.00619404]
[1734971844143,0.46862632,93179.0,93165.0,0.00619404]
[1734971844346,0.66810674,93179.0,93165.0,0.00619404]
[1734971844553,0.66810674,93179.0,93178.0,5e-07]
[1734971844759,0.1,93174.0,93162.0,0.07517489]
[1734971844936,0.364677,93163.0,93162.0,0.07570961]
[1734971845111,0.48668137,93163.0,93162.0,0.07570961]
[1734971845326,0.46866332,93163.0,93162.0,0.00053472]
[1734971846329,0.47066332,93163.0,93162.0,0.00053472]
[1734971847182,0.1,93159.0,93158.0,7.2e-07]
[1734971847390,0.55880048,93159.0,93158.0,7.2e-07]
[1734971847632,0.55745831,93159.0,93158.0,4e-08]
[1734971848472,0.55945831,93159.0,93158.0,4e-08]
[1734971848884,0.55745831,93159.0,93158.0,4e-08]
[1734971849085,0.56345831,93159.0,93158.0,0.00100004]
[1734971849399,0.55745831,93159.0,93158.0,4e-08]
[1734971849602,0.56345831,93159.0,93158.0,0.00100004]
[1734971849786,0.56345831,93159.0,93127.0,8.56e-05]
[1734971849787,0.21475,93132.0,93114.0,0.42568373]
[1734971850005,0.21475,93132.0,93114.0,0.42581016]
[1734971850411,0.214718,93146.0,93115.0,0.31877432]
[1734971850636,0.214704,93152.0,93137.0,0.214735]
[1734971851023,0.214716,93147.0,93133.0,0.214744]
[1734971851237,0.214704,93152.0,93133.0,0.429489]
[1734971851428,0.214704,93152.0,93129.0,0.0771]
[1734971851626,0.214701,93153.0,93136.0,0.214737]
[1734971851827,0.15,93152.0,93136.0,0.214737]
[1734971852016,0.15,93150.0,93136.0,0.214737]
[1734971852226,0.214709,93149.0,93136.0,0.214737]
[1734971852428,0.214709,93149.0,93130.0,0.214753]
[1734971852638,0.15,93150.0,93135.0,0.214741]
[1734971852831,0.15,93150.0,93132.0,0.0461]
[1734971853033,0.15,93154.0,93132.0,0.15008632]
[1734971853274,0.004,93152.0,93138.0,0.214735]
[1734971853518,0.15,93154.0,93138.0,0.214735]
[1734971853724,0.21467,93166.0,93132.0,0.15008632]
[1734971853944,0.214669,93167.0,93140.0,0.023]
[1734971854151,0.02208042,93179.0,93139.0,0.59684235]
[1734971854152,0.10398632,93165.0,93145.0,0.214718]
[1734971854351,0.214688,93159.0,93145.0,0.214718]
[1734971854806,0.214677,93163.0,93149.0,0.214707]
[1734971855057,0.31866332,93163.0,93149.0,0.214707]
[1734971855241,0.15,93165.0,93152.0,0.214702]
[1734971855449,0.15,93165.0,93143.0,0.0822]
[1734971855654,0.15,93159.0,93143.0,0.0822]
[1734971855850,0.15,93159.0,93152.0,0.214701]
[1734971856012,0.15,93159.0,93156.0,0.214691]
[1734971856457,0.214638,93180.0,93146.0,0.023]
[1734971856628,0.214638,93180.0,93162.0,0.214678]
[1734971856629,0.002,93165.0,93162.0,0.214678]
[1734971857033,0.002,93165.0,93163.0,0.0476]
[1734971857610,0.002,93165.0,93149.0,0.214709]
[1734971857785,0.002,93165.0,93148.0,0.43967992]
[1734971857786,0.214677,93163.0,93148.0,0.41785603]
[1734971858010,0.214691,93157.0,93146.0,0.0476]
[1734971858737,0.003,93159.0,93146.0,0.0476]
[1734971858935,0.214706,93151.0,93140.0,0.00012643]
[1734971859141,0.15,93150.0,93146.0,0.002]
[1734971859683,0.15,93150.0,93148.0,0.001]
[1734971859937,0.15,93150.0,93131.0,0.0476]
[1734971860223,0.00016009,93150.0,93136.0,0.214739]
[1734971860493,0.00116009,93150.0,93146.0,0.001]
[1734971860989,0.00116009,93150.0,93142.0,0.214725]
[1734971861691,0.00016009,93150.0,93142.0,0.214725]
[1734971861905,0.00016009,93150.0,93148.0,0.001]
[1734971862283,0.00016009,93150.0,93142.0,0.214725]
[1734971862719,0.00016009,93150.0,93146.0,0.001]
[1734971862926,0.00116009,93150.0,93146.0,0.001]
[1734971863332,0.00116009,93150.0,93142.0,0.214725]
[1734971863508,0.00116009,93150.0,93142.0,0.215725]
[1734971863922,0.00116009,93150.0,93140.0,0.214728]
[1734971864256,0.00116009,93150.0,93146.0,0.001]
[1734971864655,0.21471,93149.0,93146.0,0.001]
[1734971864857,0.214731,93140.0,93130.0,0.09029655]
[1734971864992,0.21474,93136.0,93130.0,0.09029655]
[1734971865192,0.214731,93140.0,93130.0,0.09029655]
[1734971865422,0.214749,93132.0,93130.0,0.09029655]
[1734971865629,0.214749,93132.0,93124.0,0.14306476]
[1734971866329,0.214749,93132.0,93130.0,0.004]
[1734971866534,0.214749,93132.0,93130.0,0.003]
[1734971866749,0.001,93132.0,93130.0,0.003]
[1734971866940,0.15,93139.0,93130.0,0.003]
[1734971867142,0.364733,93139.0,93117.0,0.56092079]
[1734971867345,0.364733,93139.0,93124.0,0.003]
[1734971867971,0.00016009,93150.0,93145.0,0.214717]
[1734971868164,0.00016009,93150.0,93147.0,0.237714]
[1734971868370,0.0001712,93152.0,93151.0,0.237705]
[1734971868749,0.0001712,93152.0,93151.0,0.50688751]
[1734971868948,0.0001712,93152.0,93151.0,0.29218251]
[1734971869457,0.0001712,93152.0,93151.0,0.01519619]
[1734971869661,0.0011712,93152.0,93151.0,0.02419619]
[1734971869834,0.0021712,93152.0,93151.0,0.002]
[1734971870206,0.0021712,93152.0,93151.0,0.011]
[1734971870374,0.0021712,93152.0,93151.0,0.009]
[1734971870375,0.0011712,93152.0,93151.0,0.009]
[1734971870582,0.0011712,93152.0,93151.0,0.002]
[1734971870787,0.0011712,93152.0,93151.0,0.007]
[1734971871842,0.0011712,93152.0,93151.0,0.005]
[1734971872198,0.0021712,93152.0,93151.0,0.01]
[1734971872992,0.0011712,93152.0,93151.0,0.005]
[1734971873197,0.0001712,93152.0,93142.0,0.14306476]
[1734971873398,0.0001712,93152.0,93151.0,0.011]
[1734971873399,0.0011712,93152.0,93151.0,0.011]
[1734971874169,0.0001712,93152.0,93151.0,0.002]
[1734971874549,0.0011712,93152.0,93151.0,0.002]
[1734971874870,0.0011712,93152.0,93142.0,0.07806476]
[1734971875319,0.0021712,93152.0,93151.0,0.005]
[1734971875488,0.10615752,93152.0,93151.0,0.005]
[1734971875688,0.15,93151.0,93135.0,0.00804033]
[1734971875871,0.214718,93146.0,93135.0,0.00804033]
[1734971876069,0.53342232,93146.0,93142.0,0.005]
[1734971876271,0.15134198,93145.0,93142.0,0.005]
[1734971876698,0.15134198,93145.0,93132.0,0.00804033]
[1734971876993,0.15134198,93145.0,93135.0,0.005]
[1734971877226,0.15,93143.0,93142.0,0.001]
[1734971877371,0.31870432,93146.0,93142.0,0.001]
[1734971877609,0.00134206,93145.0,93135.0,0.005]
[1734971878307,0.00134206,93145.0,93131.0,0.00016009]
[1734971878539,0.214721,93144.0,93131.0,0.00016009]
[1734971880114,0.214721,93144.0,93131.0,0.00116009]
[1734971880115,0.215721,93144.0,93131.0,0.00116009]
[1734971880305,0.00134206,93143.0,93131.0,0.00116009]
[1734971880521,0.0001712,93145.0,93131.0,0.00116009]
[1734971881090,0.001,93144.0,93131.0,0.00116009]
[1734971881290,0.001,93144.0,93132.0,0.00804922]
[1734971881697,0.001,93144.0,93131.0,0.00116009]
[1734971882168,0.001,93144.0,93131.0,0.00016009]
[1734971882362,0.0001712,93145.0,93131.0,0.00016009]
[1734971882565,0.0001712,93145.0,93132.0,0.001]
[1734971882973,0.0001712,93145.0,93131.0,0.00016009]
[1734971883213,0.05814794,93145.0,93131.0,0.00016009]
[1734971883420,0.214721,93144.0,93131.0,0.00116009]
[1734971883627,0.15134199,93143.0,93131.0,0.00116009]
[1734971883829,0.15,93134.0,93131.0,0.00116009]
[1734971884031,0.15,93132.0,93131.0,0.00116009]
[1734971884662,0.15,93132.0,93131.0,0.00016009]
[1734971884852,0.15,93130.0,93124.0,0.02116738]
[1734971884991,0.15,93130.0,93107.0,0.23597338]
[1734971885425,0.15,93130.0,93108.0,0.00804425]
[1734971885623,0.214755,93129.0,93108.0,0.00804425]
[1734971885830,0.21476,93127.0,93108.0,0.00804425]
[1734971886028,0.42952,93127.0,93108.0,0.00804425]
[1734971886233,0.21476,93127.0,93108.0,0.00804425]
[1734971886638,0.15,93126.0,93108.0,0.00804425]
[1734971887273,0.15,93126.0,93106.0,0.08694425]
[1734971887523,0.15,93126.0,93107.0,0.00804425]
[1734971887524,0.214765,93125.0,93107.0,0.00804425]
[1734971887718,0.00134226,93124.0,93107.0,0.00804425]
[1734971887924,0.00134226,93124.0,93105.0,0.16522705]
[1734971887925,0.214787,93116.0,93114.0,0.0010856]
[1734971888140,0.25532878,93115.0,93114.0,0.0010856]
[1734971888339,0.3224763,93115.0,93114.0,0.0010856]
[1734971888566,0.3224763,93115.0,93114.0,8.56e-05]
[1734971888768,0.25398632,93115.0,93114.0,0.0010856]
[1734971889182,0.15,93115.0,93114.0,0.0010856]
[1734971889392,0.15,93115.0,93114.0,0.0020856]
[1734971889393,0.15134246,93115.0,93114.0,0.0020856]
[1734971889597,0.006,93115.0,93114.0,0.0010856]
[1734971889796,0.006,93115.0,93110.0,0.214799]
[1734971890003,0.012,93115.0,93114.0,0.001]
[1734971890181,0.006,93115.0,93114.0,0.001]
[1734971890390,0.006,93115.0,93109.0,0.0789]
[1734971890591,0.006,93115.0,93106.0,0.14414184]
[1734971891205,0.006,93115.0,93112.0,0.214794]
[1734971891407,0.006,93115.0,93114.0,0.23779]
[1734971891610,0.006,93115.0,93114.0,0.34186192]
[1734971891817,0.002,93115.0,93114.0,0.12707192]
[1734971892013,0.012,93115.0,93114.0,0.12707192]
[1734971892244,0.2148922,93144.0,93126.0,0.214762]
[1734971892390,0.00016032,93140.0,93122.0,0.21477]
[1734971892593,0.214732,93139.0,93115.0,0.023]
[1734971892807,0.214735,93138.0,93121.0,0.214772]
[1734971893369,0.00016032,93140.0,93129.0,0.214754]
[1734971893574,0.00016032,93140.0,93122.0,0.13816215]
[1734971893575,0.00016032,93140.0,93122.0,0.18358632]
[1734971893751,0.00016032,93140.0,93127.0,0.214759]
[1734971894091,0.00016032,93140.0,93135.0,0.214741]
[1734971894294,0.00016032,93140.0,93128.0,0.24856131]
[1734971894548,0.00016032,93140.0,93128.0,0.14457499]
[1734971894716,0.214732,93139.0,93128.0,0.06957499]
[1734971895054,0.002,93138.0,93128.0,0.06957499]
[1734971895298,0.002,93138.0,93124.0,0.40753265]
[1734971895299,0.002,93138.0,93133.0,0.19276665]
[1734971896143,0.214737,93137.0,93133.0,0.19276665]
[1734971896535,0.214737,93137.0,93133.0,0.19476665]
[1734971896738,0.214737,93137.0,93133.0,0.002]
[1734971897176,0.00016032,93140.0,93133.0,0.002]
[1734971897613,0.214732,93139.0,93133.0,0.005]
[1734971897856,0.214732,93139.0,93133.0,0.003]
[1734971898060,0.00016032,93140.0,93133.0,0.005]
[1734971898275,0.00016032,93140.0,93133.0,0.003]
[1734971898687,0.214705,93151.0,93133.0,0.001]
[1734971898864,0.214705,93151.0,93127.0,0.09639642]
[1734971898865,0.214741,93136.0,93127.0,0.09639642]
[1734971899040,0.214742,93135.0,93133.0,0.003]
[1734971899240,0.214742,93135.0,93133.0,0.004]
[1734971899548,0.214742,93135.0,93133.0,0.003]
[1734971899747,0.214755,93129.0,93128.0,0.02539642]
[1734971900110,0.214755,93129.0,93127.0,0.00016032]
[1734971901191,0.214744,93134.0,93127.0,0.00016032]
[1734971901609,0.001,93135.0,93127.0,0.00016032]
[1734971902041,0.001,93135.0,93128.0,0.02249263]
[1734971902255,0.15,93150.0,93128.0,0.23725063]
[1734971902459,0.15,93150.0,93128.0,0.23625063]
[1734971902662,0.001,93134.0,93129.0,0.31874132]
[1734971903076,0.001,93134.0,93129.0,0.10398632]
[1734971904412,0.000171,93137.0,93132.0,0.214748]
[1734971904615,0.000171,93137.0,93132.0,0.33983882]
[1734971904831,0.001,93134.0,93132.0,0.12509082]
[1734971905039,0.001,93134.0,93133.0,0.48603952]
[1734971905249,0.001,93134.0,93133.0,0.69408352]
[1734971905473,0.000171,93137.0,93133.0,0.59806984]
[1734971905674,0.000171,93137.0,93133.0,0.008044]
[1734971906099,0.000171,93137.0,93134.0,0.008044]
[1734971906301,0.000171,93137.0,93132.0,0.0251045]
[1734971906506,0.000171,93137.0,93132.0,0.004]
[1734971906709,0.000171,93137.0,93133.0,0.003]
[1734971907132,0.000171,93137.0,93130.0,0.14460459]
[1734971907326,0.000171,93137.0,93134.0,0.001]
[1734971908581,0.000171,93137.0,93125.0,0.02181641]
[1734971908989,0.000171,93137.0,93133.0,0.001]
[1734971909394,0.000171,93137.0,93133.0,0.10398632]
[1734971909600,0.000171,93137.0,93125.0,0.02181641]
[1734971909601,0.000171,93137.0,93136.0,0.237739]
[1734971909801,0.000171,93137.0,93136.0,0.12698632]
[1734971910221,0.000171,93137.0,93136.0,0.34172532]
[1734971910421,0.000171,93137.0,93136.0,0.11202888]
[1734971910562,0.000171,93137.0,93136.0,0.00804256]
[1734971910983,0.001171,93137.0,93136.0,0.04483942]
[1734971911196,0.09566613,93205.0,93137.0,0.219]
[1734971911395,0.214611,93192.0,93166.0,0.0793]
[1734971911593,0.214585,93203.0,93172.0,0.214656]
[1734971911813,0.09566613,93205.0,93168.0,0.023]
[1734971911814,0.10398632,93202.0,93168.0,0.023]
[1734971912033,0.09566613,93205.0,93181.0,0.3820532]
[1734971912247,0.09566613,93205.0,93191.0,0.21461]
[1734971912458,0.37399012,93210.0,93183.0,0.023]
[1734971912668,0.00053503,93205.0,93186.0,0.214624]
[1734971912874,0.004,93203.0,93187.0,0.10398632]
[1734971913284,0.00053503,93205.0,93184.0,0.06090395]
[1734971913497,0.00053503,93205.0,93185.0,0.10398632]
[1734971913908,0.00053503,93205.0,93194.0,0.214605]
[1734971914118,0.00053503,93205.0,93200.0,0.0963938]
[1734971914751,0.00053503,93205.0,93201.0,0.214589]
[1734971915156,0.00053503,93205.0,93203.0,0.023]
[1734971915365,0.00053503,93205.0,93204.0,0.10398632]
[1734971916443,0.00053503,93205.0,93204.0,0.58603952]
[1734971916649,0.00053503,93205.0,93204.0,0.89459783]
[1734971916855,0.0001712,93223.0,93222.0,0.214541]
[1734971917060,0.0001712,93223.0,93222.0,0.34152732]
[1734971917061,0.00032057,93223.0,93222.0,0.34152732]
[1734971918712,0.00032057,93223.0,93217.0,0.214553]
[1734971919143,0.00032057,93223.0,93222.0,0.004]
[1734971919315,0.00032057,93223.0,93222.0,0.218541]
[1734971919767,0.00032057,93223.0,93222.0,0.145541]
[1734971919984,0.00032057,93223.0,93222.0,0.006]
[1734971920191,0.00032057,93223.0,93222.0,0.36000544]
[1734971921222,0.00032057,93223.0,93222.0,0.006]
[1734971922054,0.00032057,93223.0,93222.0,0.01]
[1734971922689,0.15,93221.0,93202.0,0.09565311]
[1734971922896,0.001341,93220.0,93202.0,0.09565311]
[1734971923360,0.001341,93220.0,93194.0,0.09565311]
[1734971923361,0.25398632,93219.0,93194.0,0.09565311]
[1734971923570,0.214591,93201.0,93194.0,0.09565311]
[1734971923985,0.214588,93202.0,93194.0,0.09565311]
[1734971924599,0.15,93210.0,93194.0,0.31025811]
[1734971924798,0.15,93210.0,93194.0,0.139605]
[1734971924998,0.15,93210.0,93185.0,0.023]
[1734971925116,0.15,93210.0,93194.0,0.215605]
[1734971925750,0.214594,93199.0,93194.0,0.001]
[1734971926386,0.0013412,93198.0,93186.0,0.09565311]
[1734971926582,0.429232,93190.0,93186.0,0.09565311]
[1734971926792,0.00134139,93189.0,93186.0,0.09565311]
[1734971927023,0.214619,93188.0,93186.0,0.09565311]
[1734971927252,0.214619,93188.0,93168.0,0.214663]
[1734971927253,0.214619,93188.0,93176.0,0.09565311]
[1734971927469,0.15134144,93187.0,93176.0,0.09565311]
[1734971927671,0.214641,93179.0,93176.0,0.09565311]
[1734971927870,0.10398632,93178.0,93176.0,0.09565311]
[1734971928082,0.21247838,93177.0,93161.0,0.09565311]
[1734971928283,0.15,93174.0,93161.0,0.09565311]
[1734971928529,0.214679,93162.0,93161.0,0.09565311]
[1734971929562,0.214693,93157.0,93139.0,0.214731]
[1734971929713,0.214693,93157.0,93134.0,0.02113063]
[1734971929927,0.214693,93157.0,93136.0,0.214739]
[1734971930120,0.002,93162.0,93136.0,0.10398632]
[1734971930354,0.15,93168.0,93136.0,0.10398632]
[1734971930552,0.001,93162.0,93136.0,0.10398632]
[1734971930800,0.214713,93148.0,93136.0,0.00053503]
[1734971931585,0.214732,93139.0,93136.0,0.00153503]
[1734971932366,0.214732,93139.0,93136.0,0.00053503]
[1734971932769,0.214686,93159.0,93136.0,0.00053503]
[1734971932770,0.364686,93159.0,93136.0,0.00053503]
[1734971932972,0.001,93162.0,93158.0,0.214687]
[1734971933182,0.15942112,93170.0,93139.0,0.023]
[1734971933428,0.214682,93161.0,93140.0,0.10398632]
[1734971933577,0.214682,93161.0,93140.0,0.11104845]
[1734971933788,0.0214682,93160.0,93144.0,0.214719]
[1734971933994,0.0214682,93160.0,93145.0,0.00704209]
[1734971934197,0.006,93162.0,93145.0,0.00704209]
[1734971934398,0.006,93162.0,93147.0,0.214714]
[1734971934607,0.00590755,93162.0,93147.0,0.214714]
[1734971934827,0.005,93161.0,93140.0,0.10398632]
[1734971935037,0.005,93161.0,93141.0,0.023]
[1734971935229,0.005,93161.0,93142.0,0.19645269]
[1734971935449,0.005,93161.0,93143.0,0.3820532]
[1734971935697,0.15,93173.0,93158.0,0.214687]
[1734971935698,0.14971555,93173.0,93158.0,0.214687]
[1734971935874,0.001,93160.0,93158.0,0.214687]
[1734971936298,0.001,93160.0,93159.0,0.12698632]
[1734971936488,0.2146,93197.0,93176.0,0.214645]
[1734971936681,0.214608,93193.0,93177.0,0.214643]
[1734971936916,0.429217,93193.0,93173.0,0.214654]
[1734971937285,0.214608,93193.0,93173.0,0.429308]
[1734971937670,0.2146,93197.0,93160.0,0.4590532]
[1734971937671,0.214619,93189.0,93177.0,0.001]
[1734971937978,0.15,93199.0,93173.0,0.214653]
[1734971938229,0.15,93197.0,93174.0,0.0214653]
[1734971938400,0.21461,93192.0,93174.0,0.0214653]
[1734971938972,0.006,93189.0,93174.0,0.0214653]
[1734971939891,0.10398632,93196.0,93171.0,0.09565311]
[1734971940318,0.10398632,93196.0,93178.0,0.214641]
[1734971940319,0.214606,93194.0,93178.0,0.214641]
[1734971940527,0.001,93189.0,93171.0,0.09565311]
[1734971940744,0.001,93189.0,93172.0,0.04537968]
[1734971941525,0.10398632,93196.0,93172.0,0.04537968]
[1734971941721,0.214609,93193.0,93175.0,0.214649]
[1734971941951,0.214609,93193.0,93179.0,0.214639]
[1734971942178,0.214612,93191.0,93172.0,0.35568779]
[1734971942350,0.214612,93191.0,93173.0,0.02562139]
[1734971942560,0.214612,93191.0,93174.0,0.214652]
[1734971942730,0.214623,93187.0,93173.0,0.02562139]
[1734971942939,0.214623,93187.0,93172.0,0.31030911]